[Event "Titled Tuesday Blitz April 26 Late 2022"]
[White "Moskalenko, Alexander"]
[Black "Keymer, Vincent"]
[WhiteFideId "4155351"]
[BlackFideId "12940690"]
[WhiteElo "2434"]
[BlackElo "2557"]
[Result "0-1"]
[Round "11"]
[TimeControl "180+1"]
[Date "2022.04.26"]
[WhiteClock "0:01:09"]
[BlackClock "0:00:11"]

1. c4 {[%clk 0:03:00]}  Nf6 {[%clk 0:02:59]} 2. Nc3 {[%clk 0:03:01]}  e6 {[%clk 0:02:59]} 3. d4 {[%clk 0:02:59]}  Bb4 {[%clk 0:02:58]} 4. Qc2 {[%clk 0:02:54]}  c5 {[%clk 0:02:57]} 5. dxc5 {[%clk 0:02:52]}  O-O {[%clk 0:02:57]} 6. Nf3 {[%clk 0:02:49]}  Na6 {[%clk 0:02:56]} 7. a3 {[%clk 0:02:49]}  Bxc3+ {[%clk 0:02:40]} 8. Qxc3 {[%clk 0:02:49]}  Nxc5 {[%clk 0:02:38]} 9. b4 {[%clk 0:02:49]}  Nce4 {[%clk 0:02:35]} 10. Qd4 {[%clk 0:02:49]}  d6 {[%clk 0:02:28]} 11. Nd2 {[%clk 0:02:43]}  e5 {[%clk 0:02:26]} 12. Qd3 {[%clk 0:02:35]}  Bf5 {[%clk 0:02:21]} 13. Nxe4 {[%clk 0:02:35]}  Bxe4 {[%clk 0:02:18]} 14. Qd2 {[%clk 0:02:33]}  a5 {[%clk 0:02:12]} 15. f3 {[%clk 0:02:24]}  Bg6 {[%clk 0:01:54]} 16. e4 {[%clk 0:02:23]}  axb4 {[%clk 0:01:32]} 17. Qxb4 {[%clk 0:02:24]}  Nxe4 {[%clk 0:01:26]} 18. fxe4 {[%clk 0:02:22]}  Qh4+ {[%clk 0:01:26]} 19. Kd1 {[%clk 0:02:20]}  Qxe4 {[%clk 0:01:26]} 20. Bd2 {[%clk 0:02:13]}  Rfc8 {[%clk 0:01:06]} 21. h3 {[%clk 0:02:05]}  d5 {[%clk 0:00:54]} 22. Be2 {[%clk 0:01:44]}  Qxg2 {[%clk 0:00:44]} 23. Re1 {[%clk 0:01:44]}  Qe4 {[%clk 0:00:35]} 24. Rc1 {[%clk 0:01:38]}  d4 {[%clk 0:00:25]} 25. Bg4 {[%clk 0:01:38]}  Qd3 {[%clk 0:00:25]} 26. Rxe5 {[%clk 0:01:29]}  Re8 {[%clk 0:00:22]} 27. Qb5 {[%clk 0:01:25]}  Qf1+ {[%clk 0:00:17]} 28. Be1 {[%clk 0:01:25]}  Qd3+ {[%clk 0:00:15]} 29. Bd2 {[%clk 0:01:25]}  f6 {[%clk 0:00:12]} 30. Be2 {[%clk 0:01:15]}  Qxh3 {[%clk 0:00:12]} 31. Qd5+ {[%clk 0:01:14]}  Kh8 {[%clk 0:00:12]} 32. Rxe8+ {[%clk 0:01:15]}  Rxe8 {[%clk 0:00:13]} 33. Qf3 {[%clk 0:01:15]}  Qe6 {[%clk 0:00:12]} 34. c5 {[%clk 0:01:15]}  d3 {[%clk 0:00:12]} 35. Bxd3 {[%clk 0:01:14]}  Qb3+ {[%clk 0:00:12]} 36. Rc2 {[%clk 0:01:09]}  Bxd3 {[%clk 0:00:11]} 0-1


[Site "https://www.chess.com"]

[Event "Titled Tuesday Blitz April 26 Late 2022"]
[White "Nakamura, Hikaru"]
[Black "Jobava, Baadur"]
[WhiteFideId "2016192"]
[BlackFideId "13601520"]
[WhiteElo "2850"]
[BlackElo "2617"]
[Result "0-1"]
[Round "11"]
[TimeControl "180+1"]
[Date "2022.04.26"]
[WhiteClock "0:00:06"]
[BlackClock "0:00:16"]

1. Nf3 {[%clk 0:03:00]}  d5 {[%clk 0:03:00]} 2. e3 {[%clk 0:03:01]}  c6 {[%clk 0:03:00]} 3. c4 {[%clk 0:03:01]}  Nf6 {[%clk 0:03:00]} 4. d4 {[%clk 0:03:01]}  Bg4 {[%clk 0:02:59]} 5. h3 {[%clk 0:03:00]}  Bxf3 {[%clk 0:02:59]} 6. Qxf3 {[%clk 0:03:01]}  e6 {[%clk 0:02:59]} 7. Nc3 {[%clk 0:03:02]}  Nbd7 {[%clk 0:02:58]} 8. Bd3 {[%clk 0:03:02]}  g6 {[%clk 0:02:58]} 9. O-O {[%clk 0:03:02]}  Bg7 {[%clk 0:02:58]} 10. b3 {[%clk 0:03:01]}  O-O {[%clk 0:02:59]} 11. Bb2 {[%clk 0:03:02]}  Re8 {[%clk 0:02:59]} 12. Rfd1 {[%clk 0:02:59]}  a6 {[%clk 0:03:00]} 13. Bf1 {[%clk 0:02:59]}  Qe7 {[%clk 0:03:00]} 14. Rac1 {[%clk 0:02:59]}  h5 {[%clk 0:03:00]} 15. g3 {[%clk 0:02:57]}  Qb4 {[%clk 0:02:58]} 16. Qe2 {[%clk 0:02:55]}  Qe7 {[%clk 0:02:59]} 17. Bg2 {[%clk 0:02:55]}  Qb4 {[%clk 0:02:58]} 18. Rb1 {[%clk 0:02:50]}  Qe7 {[%clk 0:02:57]} 19. Qc2 {[%clk 0:02:49]}  Rac8 {[%clk 0:02:57]} 20. Qc1 {[%clk 0:02:45]}  Qd6 {[%clk 0:02:52]} 21. a4 {[%clk 0:02:42]}  Bh6 {[%clk 0:02:44]} 22. Qc2 {[%clk 0:02:39]}  Bg7 {[%clk 0:02:44]} 23. Ra1 {[%clk 0:02:37]}  Qb8 {[%clk 0:02:43]} 24. Rac1 {[%clk 0:02:37]}  Bf8 {[%clk 0:02:43]} 25. e4 {[%clk 0:02:33]}  dxe4 {[%clk 0:02:41]} 26. Nxe4 {[%clk 0:02:34]}  Nxe4 {[%clk 0:02:41]} 27. Bxe4 {[%clk 0:02:33]}  Bg7 {[%clk 0:02:42]} 28. b4 {[%clk 0:02:33]}  Red8 {[%clk 0:02:32]} 29. h4 {[%clk 0:02:29]}  Nf6 {[%clk 0:02:32]} 30. Bf3 {[%clk 0:02:29]}  Rd7 {[%clk 0:02:30]} 31. Rd3 {[%clk 0:02:25]}  Rcd8 {[%clk 0:02:29]} 32. Rcd1 {[%clk 0:02:25]}  Ne8 {[%clk 0:02:28]} 33. Qc3 {[%clk 0:02:03]}  Nd6 {[%clk 0:02:22]} 34. Qc2 {[%clk 0:01:57]}  Nf5 {[%clk 0:02:21]} 35. d5 {[%clk 0:01:58]}  Bxb2 {[%clk 0:02:18]} 36. Qxb2 {[%clk 0:01:59]}  cxd5 {[%clk 0:02:07]} 37. cxd5 {[%clk 0:02:00]}  e5 {[%clk 0:02:06]} 38. Bg2 {[%clk 0:01:59]}  Re7 {[%clk 0:02:01]} 39. Re1 {[%clk 0:01:58]}  Rde8 {[%clk 0:01:54]} 40. d6 {[%clk 0:01:30]}  Nxd6 {[%clk 0:01:50]} 41. Red1 {[%clk 0:01:22]}  Nf5 {[%clk 0:01:42]} 42. Rd7 {[%clk 0:01:22]}  Nd4 {[%clk 0:01:32]} 43. Rxe7 {[%clk 0:01:19]}  Rxe7 {[%clk 0:01:33]} 44. a5 {[%clk 0:01:19]}  Qd6 {[%clk 0:01:22]} 45. Qd2 {[%clk 0:01:13]}  Kg7 {[%clk 0:01:16]} 46. Kh1 {[%clk 0:01:12]}  Qf6 {[%clk 0:01:06]} 47. Qe3 {[%clk 0:01:08]}  Rc7 {[%clk 0:01:04]} 48. Rf1 {[%clk 0:01:03]}  Rc4 {[%clk 0:00:59]} 49. f4 {[%clk 0:00:52]}  Nf5 {[%clk 0:00:49]} 50. Qb3 {[%clk 0:00:44]}  Qe6 {[%clk 0:00:35]} 51. Bxb7 {[%clk 0:00:36]}  exf4 {[%clk 0:00:35]} 52. gxf4 {[%clk 0:00:36]}  Ne3 {[%clk 0:00:31]} 53. Qb2+ {[%clk 0:00:26]}  Kh7 {[%clk 0:00:31]} 54. Re1 {[%clk 0:00:13]}  Rxf4 {[%clk 0:00:25]} 55. Qh2 {[%clk 0:00:12]}  Qc4 {[%clk 0:00:17]} 56. Bxa6 {[%clk 0:00:06]}  Qe4+ {[%clk 0:00:16]} 0-1


[Site "https://www.chess.com"]

[Event "Titled Tuesday Blitz April 26 Late 2022"]
[White "Paravyan, David"]
[Black "Svane, Frederik"]
[WhiteFideId "4194985"]
[BlackFideId "12923044"]
[WhiteElo "2569"]
[BlackElo "2459"]
[Result "1/2-1/2"]
[Round "11"]
[TimeControl "180+1"]
[Date "2022.04.26"]
[WhiteClock "0:00:05"]
[BlackClock "0:00:08"]

1. e4 {[%clk 0:02:42]}  c5 {[%clk 0:02:59]} 2. Nf3 {[%clk 0:02:42]}  e6 {[%clk 0:03:00]} 3. d4 {[%clk 0:02:42]}  cxd4 {[%clk 0:03:00]} 4. Nxd4 {[%clk 0:02:43]}  Nc6 {[%clk 0:03:01]} 5. Nc3 {[%clk 0:02:43]}  a6 {[%clk 0:03:01]} 6. Nxc6 {[%clk 0:02:38]}  bxc6 {[%clk 0:03:02]} 7. Qf3 {[%clk 0:02:39]}  d5 {[%clk 0:03:01]} 8. Qg3 {[%clk 0:02:39]}  Nf6 {[%clk 0:03:00]} 9. Bd3 {[%clk 0:02:33]}  h5 {[%clk 0:01:59]} 10. Bg5 {[%clk 0:02:31]}  Be7 {[%clk 0:01:54]} 11. Qh4 {[%clk 0:02:23]}  Nd7 {[%clk 0:01:45]} 12. Bxe7 {[%clk 0:02:21]}  Qxe7 {[%clk 0:01:46]} 13. Qxe7+ {[%clk 0:02:22]}  Kxe7 {[%clk 0:01:47]} 14. O-O-O {[%clk 0:02:22]}  Bb7 {[%clk 0:01:42]} 15. Rhe1 {[%clk 0:02:21]}  h4 {[%clk 0:01:38]} 16. Na4 {[%clk 0:02:15]}  Rh5 {[%clk 0:01:33]} 17. c4 {[%clk 0:02:08]}  d4 {[%clk 0:01:20]} 18. Be2 {[%clk 0:01:56]}  Rg5 {[%clk 0:00:43]} 19. Rxd4 {[%clk 0:01:48]}  c5 {[%clk 0:00:40]} 20. Rxd7+ {[%clk 0:01:47]}  Kxd7 {[%clk 0:00:41]} 21. Nb6+ {[%clk 0:01:48]}  Kc6 {[%clk 0:00:38]} 22. Nxa8 {[%clk 0:01:49]}  Rxg2 {[%clk 0:00:36]} 23. e5 {[%clk 0:01:39]}  Rxf2 {[%clk 0:00:35]} 24. Bd3 {[%clk 0:01:39]}  Kd7 {[%clk 0:00:19]} 25. Nb6+ {[%clk 0:01:36]}  Kc7 {[%clk 0:00:19]} 26. Na4 {[%clk 0:01:37]}  Rxh2 {[%clk 0:00:18]} 27. Nxc5 {[%clk 0:01:37]}  Bg2 {[%clk 0:00:16]} 28. Kd2 {[%clk 0:01:29]}  g5 {[%clk 0:00:15]} 29. Ke3 {[%clk 0:01:29]}  g4 {[%clk 0:00:15]} 30. Kf4 {[%clk 0:01:28]}  g3 {[%clk 0:00:14]} 31. Kg4 {[%clk 0:01:22]}  Bc6 {[%clk 0:00:08]} 32. Be4 {[%clk 0:00:57]}  g2 {[%clk 0:00:06]} 33. Rg1 {[%clk 0:00:19]}  h3 {[%clk 0:00:04]} 34. Kg3 {[%clk 0:00:19]}  Rh1 {[%clk 0:00:05]} 35. Rxh1 {[%clk 0:00:19]}  gxh1=Q {[%clk 0:00:04]} 36. Bxh1 {[%clk 0:00:20]}  Bxh1 {[%clk 0:00:05]} 37. Nxa6+ {[%clk 0:00:17]}  Kb6 {[%clk 0:00:05]} 38. Nb8 {[%clk 0:00:17]}  Kc7 {[%clk 0:00:03]} 39. Na6+ {[%clk 0:00:17]}  Kb6 {[%clk 0:00:03]} 40. Nb4 {[%clk 0:00:17]}  Kc5 {[%clk 0:00:04]} 41. Nd3+ {[%clk 0:00:17]}  Kxc4 {[%clk 0:00:04]} 42. Nf4 {[%clk 0:00:14]}  Kd4 {[%clk 0:00:05]} 43. Nxh3 {[%clk 0:00:11]}  Kxe5 {[%clk 0:00:05]} 44. a4 {[%clk 0:00:07]}  Kd4 {[%clk 0:00:05]} 45. Ng5 {[%clk 0:00:07]}  Bc6 {[%clk 0:00:03]} 46. a5 {[%clk 0:00:06]}  Kc5 {[%clk 0:00:01]} 47. Nxf7 {[%clk 0:00:07]}  Kb5 {[%clk 0:00:02]} 48. Nd8 {[%clk 0:00:08]}  Bd5 {[%clk 0:00:02]} 49. Kf4 {[%clk 0:00:08]}  Kxa5 {[%clk 0:00:03]} 50. Ke3 {[%clk 0:00:08]}  Kb4 {[%clk 0:00:03]} 51. Kd2 {[%clk 0:00:09]}  Kc5 {[%clk 0:00:03]} 52. Nf7 {[%clk 0:00:07]}  Kd4 {[%clk 0:00:04]} 53. Nh6 {[%clk 0:00:06]}  e5 {[%clk 0:00:04]} 54. Nf5+ {[%clk 0:00:06]}  Kc4 {[%clk 0:00:04]} 55. Ne3+ {[%clk 0:00:06]}  Kc5 {[%clk 0:00:05]} 56. Kd3 {[%clk 0:00:06]}  e4+ {[%clk 0:00:05]} 57. Kc3 {[%clk 0:00:06]}  Bc6 {[%clk 0:00:05]} 58. b3 {[%clk 0:00:05]}  Bd5 {[%clk 0:00:04]} 59. b4+ {[%clk 0:00:06]}  Kc6 {[%clk 0:00:04]} 60. Kd4 {[%clk 0:00:06]}  Bf7 {[%clk 0:00:04]} 61. Nd1 {[%clk 0:00:06]}  Kb5 {[%clk 0:00:04]} 62. Kc3 {[%clk 0:00:07]}  Bh5 {[%clk 0:00:05]} 63. Ne3 {[%clk 0:00:07]}  Bf7 {[%clk 0:00:05]} 64. Nf5 {[%clk 0:00:07]}  Bd5 {[%clk 0:00:05]} 65. Nd4+ {[%clk 0:00:06]}  Kb6 {[%clk 0:00:05]} 66. Kd2 {[%clk 0:00:07]}  Bb7 {[%clk 0:00:04]} 67. Ke3 {[%clk 0:00:08]}  Bd5 {[%clk 0:00:05]} 68. Kf4 {[%clk 0:00:08]}  Bb7 {[%clk 0:00:06]} 69. Ke3 {[%clk 0:00:08]}  Bd5 {[%clk 0:00:06]} 70. Ke2 {[%clk 0:00:09]}  Bb7 {[%clk 0:00:07]} 71. Kd2 {[%clk 0:00:10]}  Bd5 {[%clk 0:00:07]} 72. Kc3 {[%clk 0:00:10]}  Bb7 {[%clk 0:00:08]} 73. Kc4 {[%clk 0:00:11]}  Ba6+ {[%clk 0:00:07]} 74. Kc3 {[%clk 0:00:09]}  e3 {[%clk 0:00:06]} 75. Kc2 {[%clk 0:00:09]}  e2 {[%clk 0:00:07]} 76. Kd2 {[%clk 0:00:10]}  Bc4 {[%clk 0:00:07]} 77. Nc2 {[%clk 0:00:09]}  Kb5 {[%clk 0:00:07]} 78. Kc3 {[%clk 0:00:09]}  Bd5 {[%clk 0:00:04]} 79. Nd4+ {[%clk 0:00:10]}  Kb6 {[%clk 0:00:04]} 80. Nxe2 {[%clk 0:00:11]}  Bc6 {[%clk 0:00:05]} 81. Nd4 {[%clk 0:00:11]}  Bb5 {[%clk 0:00:05]} 82. Kd2 {[%clk 0:00:12]}  Bc6 {[%clk 0:00:05]} 83. Ke3 {[%clk 0:00:13]}  Bd5 {[%clk 0:00:05]} 84. Kf4 {[%clk 0:00:13]}  Bc6 {[%clk 0:00:06]} 85. Ke5 {[%clk 0:00:13]}  Bg2 {[%clk 0:00:07]} 86. Kf5 {[%clk 0:00:11]}  Bh1 {[%clk 0:00:07]} 87. Kf4 {[%clk 0:00:12]}  Bd5 {[%clk 0:00:07]} 88. Ke3 {[%clk 0:00:12]}  Bh1 {[%clk 0:00:07]} 89. Kd2 {[%clk 0:00:13]}  Bd5 {[%clk 0:00:07]} 90. Kc2 {[%clk 0:00:13]}  Bb7 {[%clk 0:00:07]} 91. Kb2 {[%clk 0:00:13]}  Be4 {[%clk 0:00:08]} 92. Ne2 {[%clk 0:00:14]}  Bd5 {[%clk 0:00:08]} 93. Nc3 {[%clk 0:00:14]}  Bc4 {[%clk 0:00:08]} 94. Ka3 {[%clk 0:00:15]}  Bb5 {[%clk 0:00:08]} 95. Kb3 {[%clk 0:00:13]}  Bd7 {[%clk 0:00:08]} 96. Nd5+ {[%clk 0:00:13]}  Kb5 {[%clk 0:00:08]} 97. Kc3 {[%clk 0:00:13]}  Kc6 {[%clk 0:00:08]} 98. Kd4 {[%clk 0:00:13]}  Be6 {[%clk 0:00:08]} 99. Nf4 {[%clk 0:00:12]}  Kb5 {[%clk 0:00:08]} 100. Kc3 {[%clk 0:00:12]}  Bf7 {[%clk 0:00:08]} 101. Nh3 {[%clk 0:00:12]}  Be6 {[%clk 0:00:08]} 102. Ng5 {[%clk 0:00:12]}  Bd5 {[%clk 0:00:09]} 103. Nh7 {[%clk 0:00:12]}  Be6 {[%clk 0:00:09]} 104. Nf6 {[%clk 0:00:12]}  Bf7 {[%clk 0:00:09]} 105. Ng4 {[%clk 0:00:12]}  Be6 {[%clk 0:00:09]} 106. Nh2 {[%clk 0:00:12]}  Bd5 {[%clk 0:00:10]} 107. Nf1 {[%clk 0:00:12]}  Be6 {[%clk 0:00:10]} 108. Nd2 {[%clk 0:00:12]}  Bd5 {[%clk 0:00:10]} 109. Nb1 {[%clk 0:00:12]}  Ka4 {[%clk 0:00:10]} 110. Nd2 {[%clk 0:00:11]}  Kb5 {[%clk 0:00:11]} 111. Nf1 {[%clk 0:00:11]}  Be6 {[%clk 0:00:11]} 112. Ne3 {[%clk 0:00:12]}  Ka4 {[%clk 0:00:11]} 113. Nc2 {[%clk 0:00:12]}  Bd7 {[%clk 0:00:09]} 114. Kc4 {[%clk 0:00:10]}  Bb5+ {[%clk 0:00:07]} 115. Kc5 {[%clk 0:00:10]}  Be8 {[%clk 0:00:08]} 116. Nd4 {[%clk 0:00:09]}  Ka3 {[%clk 0:00:08]} 117. Nf5 {[%clk 0:00:07]}  Bd7 {[%clk 0:00:08]} 118. Ne7 {[%clk 0:00:04]}  Kb3 {[%clk 0:00:08]} 119. Nd5 {[%clk 0:00:04]}  Ka3 {[%clk 0:00:08]} 120. Ne3 {[%clk 0:00:04]}  Be8 {[%clk 0:00:08]} 121. Nc4+ {[%clk 0:00:04]}  Kb3 {[%clk 0:00:08]} 122. Na5+ {[%clk 0:00:05]}  Ka4 {[%clk 0:00:08]} 123. Nb7 {[%clk 0:00:05]}  Bd7 {[%clk 0:00:08]} 124. Nd6 {[%clk 0:00:06]}  Kb3 {[%clk 0:00:08]} 125. Ne4 {[%clk 0:00:06]}  Be8 {[%clk 0:00:08]} 126. Nf6 {[%clk 0:00:06]}  Ba4 {[%clk 0:00:08]} 127. Nd5 {[%clk 0:00:05]}  Be8 {[%clk 0:00:08]} 128. Nf6 {[%clk 0:00:05]}  Ba4 {[%clk 0:00:08]} 129. Ng4 {[%clk 0:00:06]}  Bd7 {[%clk 0:00:08]} 130. Nf2 {[%clk 0:00:05]} 1/2-1/2


[Site "https://www.chess.com"]

[Event "Titled Tuesday Blitz April 26 Late 2022"]
[White "Petrova, Irina"]
[Black "Jarocka, Liwia"]
[WhiteFideId "14124122"]
[BlackFideId "21807558"]
[WhiteElo "1993"]
[BlackElo "1896"]
[Result "1-0"]
[Round "11"]
[TimeControl "180+1"]
[Date "2022.04.26"]
[WhiteClock "0:00:50"]
[BlackClock "0:01:40"]

1. e4 {[%clk 0:03:00]}  c6 {[%clk 0:02:58]} 2. d4 {[%clk 0:03:00]}  d5 {[%clk 0:02:58]} 3. e5 {[%clk 0:03:01]}  c5 {[%clk 0:02:57]} 4. dxc5 {[%clk 0:03:01]}  e6 {[%clk 0:02:56]} 5. a3 {[%clk 0:03:00]}  Bxc5 {[%clk 0:02:55]} 6. Qg4 {[%clk 0:03:00]}  g6 {[%clk 0:02:53]} 7. b4 {[%clk 0:03:00]}  Be7 {[%clk 0:02:52]} 8. Bb2 {[%clk 0:02:59]}  h5 {[%clk 0:02:52]} 9. Qg3 {[%clk 0:02:55]}  Nh6 {[%clk 0:02:53]} 10. Bd3 {[%clk 0:02:54]}  Nc6 {[%clk 0:02:52]} 11. Nd2 {[%clk 0:02:49]}  Nf5 {[%clk 0:02:51]} 12. Bxf5 {[%clk 0:02:47]}  exf5 {[%clk 0:02:50]} 13. e6 {[%clk 0:02:44]}  Rf8 {[%clk 0:02:46]} 14. exf7+ {[%clk 0:02:43]}  Rxf7 {[%clk 0:02:46]} 15. Qxg6 {[%clk 0:02:40]}  Bf6 {[%clk 0:02:42]} 16. Bxf6 {[%clk 0:02:27]}  Qxf6 {[%clk 0:02:41]} 17. Qxf6 {[%clk 0:02:27]}  Rxf6 {[%clk 0:02:42]} 18. Ngf3 {[%clk 0:02:27]}  Be6 {[%clk 0:02:41]} 19. O-O {[%clk 0:02:26]}  Kd7 {[%clk 0:02:40]} 20. Rfe1 {[%clk 0:02:25]}  Rg8 {[%clk 0:02:34]} 21. Ne5+ {[%clk 0:02:22]}  Nxe5 {[%clk 0:02:32]} 22. Rxe5 {[%clk 0:02:23]}  Rfg6 {[%clk 0:02:28]} 23. g3 {[%clk 0:02:23]}  h4 {[%clk 0:02:29]} 24. Rae1 {[%clk 0:02:22]}  f4 {[%clk 0:02:22]} 25. Nb3 {[%clk 0:02:19]}  b6 {[%clk 0:02:21]} 26. Nd4 {[%clk 0:02:16]}  Bh3 {[%clk 0:01:59]} 27. Re7+ {[%clk 0:01:51]}  Kc8 {[%clk 0:01:46]} 28. Re8+ {[%clk 0:01:29]}  Kd7 {[%clk 0:01:45]} 29. R1e7+ {[%clk 0:01:15]}  Kd6 {[%clk 0:01:44]} 30. Nb5+ {[%clk 0:01:15]}  Kc6 {[%clk 0:01:42]} 31. Nxa7+ {[%clk 0:01:11]}  Kd6 {[%clk 0:01:41]} 32. Nb5+ {[%clk 0:01:10]}  Kc6 {[%clk 0:01:40]} 33. Nd4+ {[%clk 0:01:09]}  Kd6 {[%clk 0:01:40]} 34. Rxg8 {[%clk 0:00:49]}  Rxg8 {[%clk 0:01:40]} 35. Rh7 {[%clk 0:00:50]} 1-0


[Site "https://www.chess.com"]

[Event "Titled Tuesday Blitz April 26 Late 2022"]
[White "Petrovic, Aleksa"]
[Black "Karttunen, Mika"]
[WhiteFideId "967629"]
[BlackFideId "502081"]
[WhiteElo "2198"]
[BlackElo "2343"]
[Result "1-0"]
[Round "11"]
[TimeControl "180+1"]
[Date "2022.04.26"]
[WhiteClock "0:00:12"]
[BlackClock "0:00:05"]

1. d4 {[%clk 0:02:59]}  Nf6 {[%clk 0:01:58]} 2. c4 {[%clk 0:02:58]}  e6 {[%clk 0:01:58]} 3. Nf3 {[%clk 0:02:58]}  Bb4+ {[%clk 0:01:56]} 4. Bd2 {[%clk 0:02:57]}  Qe7 {[%clk 0:01:42]} 5. g3 {[%clk 0:02:56]}  Bxd2+ {[%clk 0:01:36]} 6. Qxd2 {[%clk 0:02:55]}  d6 {[%clk 0:01:35]} 7. Nc3 {[%clk 0:02:54]}  e5 {[%clk 0:01:30]} 8. Bg2 {[%clk 0:02:49]}  O-O {[%clk 0:01:21]} 9. O-O {[%clk 0:02:47]}  Nc6 {[%clk 0:01:14]} 10. d5 {[%clk 0:02:18]}  Nb8 {[%clk 0:00:51]} 11. b4 {[%clk 0:02:18]}  c6 {[%clk 0:00:49]} 12. Rfd1 {[%clk 0:02:12]}  Rd8 {[%clk 0:00:39]} 13. dxc6 {[%clk 0:02:01]}  Nxc6 {[%clk 0:00:39]} 14. b5 {[%clk 0:01:56]}  Na5 {[%clk 0:00:37]} 15. Nd5 {[%clk 0:01:49]}  Nxd5 {[%clk 0:00:37]} 16. Qxa5 {[%clk 0:01:48]}  Nb6 {[%clk 0:00:33]} 17. Qb4 {[%clk 0:01:39]}  Bg4 {[%clk 0:00:30]} 18. a4 {[%clk 0:01:37]}  Rac8 {[%clk 0:00:29]} 19. Rac1 {[%clk 0:01:35]}  Rc5 {[%clk 0:00:17]} 20. a5 {[%clk 0:01:31]}  Nd7 {[%clk 0:00:17]} 21. h3 {[%clk 0:01:23]}  Be6 {[%clk 0:00:16]} 22. Nd2 {[%clk 0:01:20]}  Nf6 {[%clk 0:00:15]} 23. Nb3 {[%clk 0:01:18]}  Rcc8 {[%clk 0:00:15]} 24. Rd2 {[%clk 0:01:12]}  Qc7 {[%clk 0:00:13]} 25. c5 {[%clk 0:00:57]}  dxc5 {[%clk 0:00:09]} 26. Rxc5 {[%clk 0:00:48]}  Rxd2 {[%clk 0:00:09]} 27. Rxc7 {[%clk 0:00:47]}  Rd1+ {[%clk 0:00:09]} 28. Kh2 {[%clk 0:00:47]}  Rxc7 {[%clk 0:00:10]} 29. b6 {[%clk 0:00:45]}  axb6 {[%clk 0:00:10]} 30. axb6 {[%clk 0:00:45]}  Rcd7 {[%clk 0:00:10]} 31. Nc5 {[%clk 0:00:43]}  R7d4 {[%clk 0:00:09]} 32. Qa3 {[%clk 0:00:40]}  h5 {[%clk 0:00:05]} 33. Nxe6 {[%clk 0:00:38]}  fxe6 {[%clk 0:00:05]} 34. Bxb7 {[%clk 0:00:37]}  e4 {[%clk 0:00:06]} 35. Bc8 {[%clk 0:00:35]}  Rb1 {[%clk 0:00:05]} 36. b7 {[%clk 0:00:31]}  Rdd1 {[%clk 0:00:03]} 37. Bxe6+ {[%clk 0:00:20]}  Kh7 {[%clk 0:00:04]} 38. Bf5+ {[%clk 0:00:19]}  Kh6 {[%clk 0:00:04]} 39. Qe3+ {[%clk 0:00:18]}  g5 {[%clk 0:00:04]} 40. Bxe4 {[%clk 0:00:17]}  Nxe4 {[%clk 0:00:04]} 41. Qxe4 {[%clk 0:00:18]}  Rb6 {[%clk 0:00:01]} 42. h4 {[%clk 0:00:17]}  Rdb1 {[%clk 0:00:02]} 43. hxg5+ {[%clk 0:00:17]}  Kxg5 {[%clk 0:00:02]} 44. Qf4+ {[%clk 0:00:17]}  Kg6 {[%clk 0:00:02]} 45. e4 {[%clk 0:00:17]}  Rxb7 {[%clk 0:00:02]} 46. Qf5+ {[%clk 0:00:17]}  Kh6 {[%clk 0:00:03]} 47. e5 {[%clk 0:00:17]}  R1b2 {[%clk 0:00:03]} 48. e6 {[%clk 0:00:17]}  Re2 {[%clk 0:00:03]} 49. Qf4+ {[%clk 0:00:16]}  Kg7 {[%clk 0:00:03]} 50. Qd4+ {[%clk 0:00:15]}  Kf8 {[%clk 0:00:02]} 51. Qd6+ {[%clk 0:00:15]}  Re7 {[%clk 0:00:02]} 52. Qf4+ {[%clk 0:00:12]}  Ke8 {[%clk 0:00:02]} 53. Qf5 {[%clk 0:00:11]}  R7xe6 {[%clk 0:00:02]} 54. Qxh5+ {[%clk 0:00:12]}  Ke7 {[%clk 0:00:02]} 55. Kg2 {[%clk 0:00:12]}  Kd7 {[%clk 0:00:02]} 56. Qd5+ {[%clk 0:00:11]}  Ke7 {[%clk 0:00:03]} 57. g4 {[%clk 0:00:11]}  Kf6 {[%clk 0:00:03]} 58. g5+ {[%clk 0:00:11]}  Kg6 {[%clk 0:00:03]} 59. Kg3 {[%clk 0:00:12]}  R2e5 {[%clk 0:00:03]} 60. Qd3+ {[%clk 0:00:11]}  Kxg5 {[%clk 0:00:03]} 61. f4+ {[%clk 0:00:11]}  Kf6 {[%clk 0:00:04]} 62. fxe5+ {[%clk 0:00:12]}  Rxe5 {[%clk 0:00:05]} 63. Kf4 {[%clk 0:00:12]}  Ke6 {[%clk 0:00:06]} 64. Qa6+ {[%clk 0:00:11]}  Kd5 {[%clk 0:00:05]} 65. Qb5+ {[%clk 0:00:11]}  Kd4 {[%clk 0:00:05]} 66. Qxe5+ {[%clk 0:00:12]} 1-0


[Site "https://www.chess.com"]